bitfinex/quotes_ETHUSD_20241122
["timestamp","ask_amount","ask_price","bid_price","bid_amount"]
[1732305794794,0.55,3273.1,3271.8,1.5549]
[1732305795310,3.75,3273.2,3271.8,1.5449]
[1732305795511,0.55,3273.0,3271.8,1.5549]
[1732305795914,0.55,3273.0,3271.8,1.5449]
[1732305796830,3.75,3272.8,3271.8,1.5449]
[1732305797030,0.55,3272.6,3271.8,1.5449]
[1732305797231,0.55,3272.4,3271.8,1.5449]
[1732305797595,0.55,3272.6,3271.8,1.5449]
[1732305797922,0.55,3272.4,3271.8,1.5449]
[1732305798398,0.55,3272.6,3271.8,1.5449]
[1732305798593,3.75,3272.6,3271.8,1.5449]
[1732305798942,3.75,3272.4,3271.3,1.6228]
[1732305799813,3.42641721,3273.3,3270.6,0.01]
[1732305799814,3.75,3272.2,3270.9,1.6228]
[1732305799995,3.75,3272.0,3270.9,1.6228]
[1732305800431,3.75,3272.0,3270.4,1.6228]
[1732305800432,3.2,3271.6,3270.4,1.6228]
[1732305800632,0.98,3271.9,3270.4,1.6228]
[1732305800633,3.75,3271.5,3270.4,1.6228]
[1732305800937,4.73,3271.3,3270.0,1.6228]
[1732305801333,4.73,3271.3,3268.5,1.54793405]
[1732305801334,4.73,3271.3,3269.6,1.6541]
[1732305801545,3.2,3270.9,3269.6,1.6541]
[1732305801857,0.98,3271.1,3269.6,1.6541]
[1732305801858,0.55,3271.0,3269.6,1.6541]
[1732305802373,0.55,3271.0,3269.6,1.6641]
[1732305804350,0.55,3271.0,3269.9,0.01]
[1732305804657,0.98,3271.1,3269.9,0.01]
[1732305804658,0.55,3270.8,3269.9,0.01]
[1732305805623,0.55,3270.8,3269.7,0.01]
[1732305805956,0.55,3270.8,3269.7,0.02]
[1732305806333,0.55,3270.8,3269.7,0.01]
[1732305806923,0.55,3270.8,3269.6,1.6541]
[1732305807370,0.55,3270.8,3269.8,0.01]
[1732305809377,0.98,3270.5,3268.7,0.01]
[1732305809540,0.98,3269.8,3268.6,0.875]
[1732305809741,0.98,3269.4,3268.6,0.875]
[1732305809976,0.55,3269.1,3268.6,0.875]
[1732305810475,0.55,3268.9,3268.6,0.875]
[1732305812460,1.770911,3268.9,3268.6,0.875]
[1732305812655,0.55,3268.7,3268.6,0.875]
[1732305813853,0.98,3269.6,3268.6,0.875]
[1732305814078,0.98,3269.6,3268.6,0.885]
[1732305814589,0.98,3269.6,3268.6,0.875]
[1732305814944,4.18,3269.6,3268.6,0.875]
[1732305815147,3.618,3269.5,3268.6,0.875]
[1732305815382,3.2,3269.1,3268.6,0.875]
[1732305815560,3.75,3269.0,3268.6,0.875]
[1732305815767,0.55,3268.8,3268.6,0.875]
[1732305817766,4.73,3268.7,3268.6,0.875]
[1732305818602,3.75,3268.7,3268.6,0.875]
[1732305818884,4.73,3268.7,3268.6,0.875]
[1732305821357,4.73,3268.7,3268.6,0.325]
[1732305822348,4.79223676,3268.7,3268.6,0.325]
[1732305822550,5.22660789,3268.7,3268.6,0.325]
[1732305822988,4.79223676,3268.7,3268.6,0.325]
[1732305823655,5.22660789,3268.7,3268.6,0.325]
[1732305824077,7.17641721,3267.9,3267.8,0.1239512]
[1732305824285,3.75,3267.9,3267.8,0.1239512]
[1732305824658,3.2,3267.9,3267.8,0.1239512]
[1732305825397,3.2,3268.3,3267.8,0.1239512]
[1732305825689,0.34264172,3268.3,3267.8,0.1239512]
[1732305825890,0.655,3268.4,3267.8,0.1239512]
[1732305826541,0.15892328,3268.6,3267.8,0.1239512]
[1732305826901,0.15892328,3268.6,3268.0,0.01]
[1732305827237,0.15892328,3268.6,3268.2,0.01]
[1732305827397,0.15892328,3268.6,3268.5,1.5865]
[1732305827801,0.655,3270.2,3269.0,0.01]
[1732305828008,0.655,3270.2,3269.1,1.5865]
[1732305828298,0.1875458,3270.1,3269.1,1.5865]
[1732305829238,3.75,3270.0,3269.1,1.5865]
[1732305829454,3.2,3269.6,3268.5,1.5689]
[1732305829599,3.2,3269.0,3267.9,1.5689]
[1732305829822,0.55,3268.9,3268.0,0.01]
[1732305830016,0.55,3268.9,3267.9,1.5689]
[1732305830017,4.1355,3268.9,3267.9,1.5689]
[1732305830212,3.75,3268.9,3267.9,1.5689]
[1732305830446,3.75,3268.9,3268.0,0.01]
[1732305830649,0.55,3269.2,3268.2,0.01]
[1732305830846,0.655,3270.0,3268.4,0.01]
[1732305831741,3.2,3269.9,3268.5,0.01]
[1732305831909,3.2,3269.7,3268.3,1.6299]
[1732305832114,3.2,3269.7,3268.3,1.6199]
[1732305832314,0.55,3269.3,3268.3,1.6199]
[1732305833314,0.55,3269.5,3268.3,1.6199]
[1732305833513,0.55,3269.5,3268.6,0.01]
[1732305833715,0.55,3269.7,3268.6,0.01]
[1732305835315,0.55,3269.7,3268.3,1.6199]
[1732305835316,0.655,3270.1,3269.0,0.01]
[1732305835516,0.3855,3270.0,3269.0,0.01]
[1732305835829,3.42641721,3271.0,3269.0,0.01]
[1732305836021,0.655,3270.5,3269.3,0.01]
[1732305836222,0.655,3270.5,3269.1,1.6285]
[1732305836418,3.855,3270.5,3269.3,0.01]
[1732305836665,0.3855,3270.4,3269.3,0.01]
[1732305836869,0.3855,3270.4,3269.1,1.6185]
[1732305837227,0.55,3270.3,3269.1,1.6185]
[1732305837434,0.55,3270.3,3269.3,0.01]
[1732305838159,0.3855,3270.4,3269.5,0.01]
[1732305838364,0.655,3270.5,3269.5,0.01]
[1732305839171,3.2,3270.8,3269.6,1.5425]
[1732305839754,0.55,3270.7,3269.6,1.5425]
[1732305840825,3.75,3270.7,3269.6,1.5425]
[1732305841136,0.55,3270.2,3269.2,0.01]
[1732305841338,0.55,3270.2,3269.3,1.5425]
[1732305841673,3.75,3270.2,3269.3,1.5425]
[1732305841838,3.2,3269.6,3268.7,1.5425]
[1732305842027,3.2,3269.2,3268.7,1.5425]
[1732305842226,3.75,3269.0,3268.7,1.5425]
[1732305844267,3.75,3269.0,3268.0,1.5425]
[1732305844993,3.75,3269.0,3268.3,0.01]
[1732305846091,3.75,3269.0,3268.6,1.5425]
[1732305846394,3.75,3268.7,3268.2,1.5425]
[1732305846898,0.55,3268.9,3268.2,1.5425]
[1732305847396,0.55,3268.9,3268.3,0.37295925]
[1732305847596,0.55,3268.9,3268.7,1.5292]
[1732305847755,3.2,3269.7,3268.7,1.5292]
[1732305847959,3.2,3269.5,3268.7,1.5292]
[1732305848898,3.2,3269.7,3268.7,1.5292]
[1732305849050,0.655,3269.8,3268.7,1.5292]
[1732305849051,0.55,3269.6,3268.7,1.5292]
[1732305849251,3.75,3269.7,3268.7,1.5392]
[1732305849498,3.80141721,3270.6,3269.0,0.01]
[1732305849499,0.4405,3269.6,3269.0,0.01]
[1732305849703,0.4405,3269.6,3268.7,1.5292]
[1732305849704,1.03,3270.6,3269.3,0.01]
[1732305849867,0.655,3271.0,3269.8,0.01]
[1732305850076,0.655,3271.0,3270.1,1.609]
[1732305850285,3.2,3271.0,3270.2,0.01]
[1732305850470,0.32,3270.9,3270.2,0.01]
[1732305850983,0.655,3271.4,3270.5,0.01]
[1732305851180,3.855,3271.4,3270.5,0.01]
[1732305851383,3.855,3271.4,3270.1,1.619]
[1732305851384,4.805532,3271.3,3270.1,1.609]
[1732305852859,3.2,3270.9,3270.1,1.609]
[1732305853093,3.75,3270.7,3270.1,1.609]
[1732305853271,1.605532,3271.3,3267.8,0.15453981]
[1732305853272,3.75,3270.5,3269.1,1.517]
[1732305853473,3.75,3270.3,3269.1,1.517]
[1732305853757,3.2,3269.5,3268.6,1.517]
[1732305853952,0.55,3269.4,3268.7,0.01]
[1732305854209,0.55,3269.2,3268.7,0.01]
[1732305854360,0.55,3269.2,3268.9,0.01]
[1732305855963,0.55,3269.2,3268.7,0.01]
[1732305856165,0.55,3269.2,3268.6,1.517]
[1732305856762,0.655,3270.1,3268.6,1.517]
[1732305856763,0.55,3269.0,3268.7,0.01]
[1732305856958,0.55,3268.8,3268.7,0.01]
[1732305857278,0.83382501,3268.8,3268.7,0.01]
[1732305857486,0.55,3268.8,3268.7,0.01]
[1732305857813,0.55,3269.4,3268.9,0.01]
[1732305857986,0.55,3269.2,3268.9,0.01]
[1732305858329,0.55,3269.0,3268.9,0.01]
[1732305858518,0.8338117,3269.0,3268.9,0.01]
[1732305858817,0.8338117,3269.0,3268.7,0.01]
[1732305858989,0.55,3269.0,3268.9,0.01]
[1732305859206,0.83381943,3269.0,3268.7,0.01]
[1732305859387,0.28382498,3268.9,3268.7,0.01]
[1732305860014,0.28382498,3268.9,3268.6,1.517]
[1732305860216,0.55,3268.8,3268.7,0.01]
[1732305860490,0.83382498,3268.8,3268.7,0.01]
[1732305861720,3.2,3270.0,3268.6,1.517]
[1732305861721,3.2,3270.0,3269.0,0.01]
[1732305861909,0.55,3269.8,3269.0,0.01]
[1732305862093,0.55,3269.6,3269.0,0.01]
[1732305862293,0.28395129,3269.5,3269.0,0.01]
[1732305862830,0.55,3269.4,3269.0,0.01]
[1732305863198,0.55,3269.2,3269.1,1.6556]
[1732305863531,0.655,3270.5,3269.2,0.01]
[1732305863694,0.28403548,3270.4,3269.1,1.6556]
[1732305863880,0.28403548,3270.3,3269.1,1.6656]
[1732305864076,0.655,3270.1,3268.8,1.6656]
[1732305864282,3.48403548,3270.0,3268.8,1.6556]
[1732305864496,3.2,3269.8,3268.8,1.6556]
[1732305864699,0.55,3269.6,3268.8,1.6556]
[1732305864922,0.55,3269.4,3268.8,1.6556]
[1732305865119,0.28403548,3269.3,3268.8,1.6556]
[1732305865417,0.28403548,3269.2,3268.8,1.6556]
[1732305865620,0.83403548,3269.1,3268.7,0.01]
[1732305865807,0.55,3268.9,3268.7,0.01]
[1732305866130,3.2,3269.6,3268.5,1.5566]
[1732305866131,0.55,3268.7,3268.5,1.5566]
[1732305866332,0.83403548,3268.6,3268.5,1.5566]
[1732305866532,0.55,3268.5,3268.2,1.5566]
[1732305866835,0.655,3269.2,3268.2,1.5566]
[1732305866836,0.55,3268.3,3268.2,1.5566]
[1732305867320,0.83384743,3268.3,3268.2,1.5566]
[1732305870243,0.28384743,3268.3,3268.2,1.5566]
[1732305870413,3.2,3269.4,3268.2,1.5566]
[1732305870610,3.2,3269.2,3268.2,1.5566]
[1732305870812,0.28359229,3269.1,3268.2,1.5566]
[1732305871031,0.28364255,3269.0,3268.2,1.5566]
[1732305871348,0.28364255,3268.9,3268.2,1.5566]
[1732305871499,0.83364255,3268.8,3268.2,1.5566]
[1732305871838,0.83364255,3268.8,3268.1,0.01]
[1732305871839,0.28364255,3268.7,3268.6,1.5668]
[1732305872040,0.28364255,3269.4,3268.6,1.5668]
[1732305872252,0.2836842,3269.3,3268.8,0.01]
[1732305872399,0.2836842,3269.2,3268.8,0.01]
[1732305872595,0.2836842,3269.1,3268.8,0.01]
[1732305872803,0.2836842,3269.0,3268.8,0.01]
[1732305873097,0.8336842,3268.9,3268.8,0.01]
[1732305873838,3.2,3269.9,3268.8,0.01]
[1732305874060,3.2,3269.7,3269.0,0.01]
[1732305874198,0.28375863,3269.6,3268.8,0.01]
[1732305874399,0.63213449,3269.5,3269.1,0.01]
[1732305874595,0.28375863,3269.4,3269.2,1.5568]
[1732305874834,0.28375863,3269.4,3269.3,0.01]
[1732305875032,0.28375863,3269.9,3269.3,0.01]
[1732305875234,0.28375863,3269.8,3269.3,0.01]
[1732305875439,0.28375863,3269.7,3269.3,0.01]
[1732305875749,0.28375863,3269.6,3269.3,0.01]
[1732305876039,0.55,3269.4,3269.3,0.01]
[1732305876340,0.83375863,3269.4,3268.9,0.02]
[1732305876540,0.55,3269.2,3268.9,0.02]
[1732305876744,0.28375863,3269.1,3269.0,1.5293]
[1732305876946,0.655,3270.4,3269.1,0.01]
[1732305877243,0.28358256,3270.3,3269.4,0.01]
[1732305877541,0.655,3270.4,3269.4,0.01]
[1732305877542,0.28358256,3270.2,3269.4,0.01]
[1732305877720,0.28358256,3270.1,3269.8,0.01]
[1732305877903,3.42641721,3271.5,3269.8,0.01]
[1732305877904,0.28358256,3270.0,3269.8,0.01]
[1732305878099,0.28358256,3269.9,3269.8,0.02]
[1732305878342,0.28358256,3269.9,3269.8,0.01]
[1732305878730,3.2,3270.9,3269.9,0.01]
[1732305879051,3.2,3270.7,3269.9,0.01]
[1732305879222,0.55,3270.4,3269.9,0.01]
[1732305879408,0.55,3270.2,3269.9,0.01]
[1732305879738,3.2,3270.5,3269.7,0.01]
[1732305879739,0.55,3270.0,3269.7,0.01]
[1732305879952,0.55,3270.0,3269.5,1.5293]
[1732305879953,0.55,3270.2,3269.8,0.01]
[1732305880153,0.55,3270.5,3269.8,0.01]
[1732305880355,0.55,3270.3,3269.8,0.02]
[1732305880646,0.55,3270.3,3269.8,0.01]
[1732305881004,3.75,3270.3,3269.5,1.5293]
[1732305881204,0.55,3269.6,3269.3,0.01]
[1732305881408,0.55,3269.6,3269.2,1.5482]
[1732305881631,0.55,3269.6,3269.3,0.01]
[1732305881632,0.55,3269.4,3269.3,0.01]
[1732305882476,0.55,3269.4,3269.3,0.02]
[1732305882644,0.55,3269.4,3269.2,1.5482]
[1732305883339,3.75,3269.4,3268.8,1.5682]
[1732305883537,0.55,3269.2,3268.8,1.5682]
[1732305884237,0.55,3269.2,3269.0,0.01]
[1732305884647,0.55,3269.2,3269.1,0.36295925]
[1732305884855,0.55,3269.2,3269.0,0.02]
[1732305886557,0.55,3269.2,3269.0,0.01]
[1732305886972,0.55,3269.2,3269.1,0.01]
[1732305887138,0.55,3269.2,3269.0,0.01]
[1732305887851,0.55,3269.2,3268.8,1.5482]
[1732305888067,0.55,3269.4,3268.8,1.5482]
[1732305888444,0.55,3269.4,3268.7,0.01]
[1732305888774,0.55,3269.4,3268.6,0.0019097]
[1732305888973,3.75,3269.4,3268.6,0.0019097]
[1732305889192,0.655,3269.5,3268.6,0.0019097]
[1732305889193,0.55,3269.2,3268.6,0.0019097]
[1732305889540,0.55,3269.2,3268.6,0.0119097]
[1732305889741,0.55,3269.2,3268.6,0.0019097]
[1732305889976,3.75,3269.2,3268.6,0.0019097]
[1732305890178,0.55,3268.8,3268.6,0.0019097]
[1732305890389,3.75,3268.8,3268.6,0.0019097]
[1732305891859,0.55,3268.8,3268.6,0.0019097]
[1732305892264,0.85108205,3272.2,3268.7,0.01]
[1732305892582,0.655,3270.4,3269.3,0.01]
[1732305894267,0.55,3270.3,3269.3,0.01]
[1732305894570,0.55,3270.3,3269.1,1.6181]
[1732305894571,0.55,3270.1,3269.2,0.01]
[1732305895272,0.655,3270.2,3269.2,0.01]
[1732305895476,0.655,3270.2,3269.5,1.5291]
[1732305895681,0.655,3270.2,3268.6,0.34995726]
[1732305895682,0.655,3270.2,3269.0,1.5291]
[1732305895844,0.655,3270.2,3269.2,0.01]
[1732305896047,0.655,3270.2,3269.2,0.02]
[1732305896374,0.655,3270.2,3269.2,0.01]
[1732305896583,0.55,3270.1,3269.3,0.01]
[1732305898588,0.55,3270.1,3269.5,0.01]
[1732305898757,0.655,3270.6,3269.7,1.5655]
[1732305899678,1.220032,3271.3,3270.4,0.01]
[1732305899889,1.875032,3271.3,3270.4,1.5655]
[1732305900049,1.875032,3271.3,3270.4,1.5555]
[1732305900547,1.875032,3271.3,3270.0,0.01]
[1732305900771,1.875032,3271.3,3270.6,0.01]
[1732305901087,0.1875032,3271.2,3270.6,1.5555]
[1732305901300,0.1875032,3271.2,3270.2,1.5655]
[1732305901457,0.20625352,3271.1,3270.2,1.5655]
[1732305901652,0.20625352,3271.1,3270.5,0.01]
[1732305902573,0.20625352,3271.1,3271.0,0.01]
[1732305902793,3.42641721,3272.7,3270.9,0.01]
[1732305902794,0.655,3272.2,3271.4,0.01]
[1732305902962,0.655,3272.2,3270.9,0.02]
[1732305902963,1.219772,3271.8,3270.9,0.02]
[1732305903306,1.219772,3271.8,3271.0,0.01]
[1732305903460,1.219772,3271.8,3270.9,0.01]
[1732305903862,1.219772,3271.8,3271.1,0.01]
[1732305904695,1.219772,3271.8,3271.3,0.01]
[1732305904881,0.655,3272.7,3271.8,0.01]
[1732305905260,1.219586,3272.3,3271.8,0.01]
[1732305905461,0.655,3272.7,3271.8,0.02]
[1732305905656,0.655,3272.7,3272.1,0.01]
[1732305905856,1.219552,3272.7,3272.3,0.01]
[1732305906061,1.219552,3272.7,3271.9,0.01]
[1732305906364,1.219552,3272.7,3272.1,0.01]
[1732305907802,0.55,3272.6,3272.1,0.01]
[1732305908102,0.55,3272.4,3272.1,0.01]
[1732305908283,0.55,3272.4,3271.9,0.02]
[1732305908599,0.55,3272.4,3271.9,0.01]
[1732305908901,0.55,3272.4,3271.2,0.02]
[1732305908902,0.655,3272.3,3271.2,0.02]
[1732305909210,0.655,3272.3,3270.9,0.34788759]
[1732305909211,0.55,3272.2,3271.1,1.5633]
[1732305909504,0.55,3272.2,3270.8,0.0019097]
[1732305909659,3.756,3272.0,3270.8,0.0019097]
[1732305909863,0.55,3271.8,3270.8,0.0119097]
[1732305910294,0.55,3271.8,3270.9,0.01]
[1732305910700,0.55,3271.8,3270.8,0.0019097]
[1732305911087,0.55,3271.8,3270.9,0.01]
[1732305911614,0.55,3271.8,3271.3,0.01]
[1732305911904,0.55,3272.3,3271.4,1.632]
[1732305913007,0.55,3272.3,3271.1,0.01]
[1732305913158,1.219552,3272.7,3271.6,0.01]
[1732305913357,1.874552,3272.7,3271.7,1.601]
[1732305913562,1.874552,3272.7,3271.9,0.01]
[1732305913775,1.874552,3272.7,3271.7,1.621]
[1732305915000,0.1269552,3272.5,3271.7,1.621]
[1732305915301,0.55,3272.4,3272.0,0.01]
[1732305915879,0.55,3272.4,3271.7,1.621]
[1732305916092,0.55,3272.4,3271.9,0.01]
[1732305916707,0.55,3272.2,3271.9,0.01]
[1732305917010,0.55,3272.4,3271.9,0.01]
[1732305919802,0.55,3272.4,3271.7,1.601]
[1732305920019,0.55,3272.4,3271.8,0.01]
[1732305923327,0.55,3272.4,3271.9,0.01]
[1732305923681,0.55,3272.4,3271.9,0.48325689]
[1732305923911,0.55,3272.4,3271.8,0.01]
[1732305924312,0.55,3272.4,3271.9,0.01]
[1732305924820,0.55,3272.4,3272.0,0.47325689]
[1732305925028,0.1269552,3272.5,3272.4,0.01]
[1732305925189,1.219552,3272.7,3272.4,0.49325689]
[1732305925389,1.219552,3272.7,3272.5,0.47325689]
[1732305926499,0.55,3272.6,3272.5,0.47325689]
[1732305926702,0.7269552,3272.6,3272.5,0.47325689]
[1732305927236,0.7269552,3272.6,3272.4,0.02]
[1732305927387,1.219552,3272.7,3272.6,1.6556]
[1732305927586,1.219552,3272.7,3272.6,2.13885689]
[1732305927817,0.655,3274.4,3273.3,0.01]
[1732305928017,3.206,3274.3,3273.4,1.6456]
[1732305928328,4.425015,3274.3,3273.4,1.6456]
[1732305928502,1.219015,3274.3,3273.4,1.6456]
[1732305928705,0.1874015,3274.2,3273.4,1.6456]
[1732305928902,3.206,3274.0,3273.4,1.6456]
[1732305929121,0.1874015,3274.2,3273.7,0.01]
[1732305929320,0.1874015,3274.2,3273.9,0.01]
[1732305930497,0.55,3274.1,3273.9,0.01]
[1732305932539,0.55,3274.1,3274.0,0.02914198]
[1732305932698,0.74564165,3274.1,3274.0,0.02914198]
[1732305935598,0.74564165,3274.1,3274.0,0.50239887]
[1732305936513,0.55,3274.2,3274.0,0.50239887]
[1732305939123,0.55,3274.2,3274.0,0.02914198]
[1732305941002,1.205,3274.2,3274.0,0.02914198]
[1732305941500,0.55,3274.2,3274.0,0.02914198]
[1732305941702,0.502398,3274.3,3274.1,0.48325689]
[1732305941900,0.502398,3274.3,3274.2,1.5316]
[1732305942220,0.85108205,3277.3,3274.5,0.01]
[1732305942221,1.218614,3274.8,3274.5,0.01]
[1732305942401,1.218614,3274.8,3274.6,0.47325689]
[1732305943599,1.218614,3274.8,3274.2,1.55832649]
[1732305943806,0.55,3274.7,3274.2,1.57832649]
[1732305944005,0.55,3274.5,3274.2,2.05158338]
[1732305944308,0.55,3274.5,3274.2,0.49998338]
[1732305944519,0.55,3274.5,3274.3,0.47325689]
[1732305945636,0.55,3274.5,3274.4,0.00457151]
[1732305946041,0.55,3274.5,3274.3,0.47325689]
[1732305947472,0.55,3274.5,3274.4,1.6068]
[1732305947774,0.1768614,3274.6,3274.4,2.08005689]
[1732305948074,0.7268614,3274.6,3274.5,0.48325689]
[1732305948573,0.1768614,3274.6,3274.5,0.48325689]
[1732305949372,0.655,3275.7,3274.7,0.01]
[1732305949545,1.218495,3275.0,3274.8,0.47325689]
[1732305950674,1.218495,3275.0,3274.4,1.6168]
[1732305950881,0.55,3274.9,3274.1,1.5551]
[1732305951041,0.2423495,3274.8,3274.3,0.01]
[1732305951250,0.2423495,3274.8,3274.4,0.01]
[1732305951585,0.2423495,3274.8,3274.3,0.01]
[1732305951736,0.2423495,3274.8,3274.1,2.01848475]
[1732305952031,0.2423495,3274.8,3274.3,0.01]
[1732305953334,0.2423495,3274.8,3274.3,0.02]
[1732305953774,0.2423495,3274.8,3274.3,0.01]
[1732305954074,0.2423495,3274.8,3274.4,0.46338475]
[1732305955334,0.2423495,3274.8,3274.3,0.02]
[1732305955774,0.2423495,3274.8,3274.3,0.48338475]
[1732305956174,0.2423495,3274.8,3274.5,0.01]
[1732305956381,0.2423495,3274.8,3274.6,0.46338475]
[1732305956712,0.2423495,3274.8,3274.7,0.01]
[1732305957849,0.2423495,3274.8,3274.7,1.5649]
[1732305958183,3.861,3275.7,3274.9,0.01]
[1732305958340,1.218423,3275.3,3275.0,0.46338475]
[1732305960365,3.861,3276.0,3275.1,0.01]
[1732305960572,0.55,3275.9,3275.1,0.47338475]
[1732305960851,1.013385,3275.9,3275.2,0.46338475]
[1732305961185,0.4874385,3275.8,3275.2,0.46338475]
[1732305961407,0.4874385,3275.8,3275.1,0.01]
[1732305964400,0.4874385,3275.8,3275.2,0.46338475]
[1732305964730,0.4874385,3275.8,3275.6,0.01]
[1732305964890,0.463385,3275.9,3275.8,0.01]
[1732305965289,0.463385,3275.9,3275.4,1.5122]
[1732305965511,0.655,3276.0,3275.2,0.01]
[1732305965730,3.206,3275.9,3275.2,0.01]
[1732305966085,3.206,3275.9,3275.1,1.5022]
[1732305966327,3.206,3275.9,3274.9,0.01]
[1732305966634,3.206,3275.9,3274.8,1.6413]
[1732305966635,3.206,3275.7,3274.8,1.6413]
[1732305966785,3.861,3275.5,3274.5,0.48338475]
[1732305967134,3.861,3275.5,3274.4,1.6165]
[1732305967135,0.72387728,3275.4,3274.6,0.01]
[1732305967421,0.72387728,3275.4,3274.4,1.6265]
[1732305967607,0.72387728,3275.4,3274.7,0.01]
[1732305967812,0.45848773,3275.3,3274.4,1.6165]
[1732305967996,0.45848773,3275.3,3274.6,0.01]
[1732305968197,0.45848773,3275.3,3274.4,1.6365]
[1732305968412,0.45848773,3275.3,3274.7,0.01]
[1732305968588,0.45848773,3275.3,3274.4,2.08836718]
[1732305968789,0.45848773,3275.3,3274.7,0.01]
[1732305969004,0.45848773,3275.3,3274.9,0.01]
[1732305969743,0.45848773,3275.3,3274.5,0.01]
[1732305970039,0.45848773,3275.3,3274.7,0.01]
[1732305970241,0.45848773,3275.3,3274.4,1.6165]
[1732305970242,3.66448773,3275.3,3274.4,1.6165]
[1732305970406,0.36644877,3275.2,3274.5,0.01]
[1732305971298,0.36644877,3275.2,3274.5,0.46186718]
[1732305971539,3.756,3275.3,3274.5,0.46186718]
[1732305972056,0.655,3275.5,3274.9,0.01]
[1732305972933,0.655,3275.8,3275.1,1.5857]
[1732305973104,0.3861,3275.7,3275.2,0.45186718]
[1732305973304,0.3861,3275.7,3275.1,1.5857]
[1732305973531,0.3861,3275.7,3275.2,0.01]
[1732305973734,0.655,3276.2,3275.5,0.01]
[1732305974605,0.655,3276.2,3275.5,0.46186718]
[1732305974808,0.3861,3276.1,3275.5,0.46186718]
[1732305975107,0.55,3276.0,3275.5,0.46186718]
[1732305976042,0.3861,3276.1,3275.6,0.45186718]
[1732305976242,0.55,3276.1,3275.6,0.45186718]
[1732305976465,0.55,3276.1,3275.8,0.01]
[1732305976663,1.218289,3276.8,3275.8,0.01]
[1732305976664,0.55,3276.4,3275.8,0.01]
[1732305976974,0.655,3276.5,3275.9,0.01]
[1732305977130,1.873289,3276.8,3275.9,0.46186718]
[1732305977329,0.1873289,3276.7,3275.9,0.46186718]
[1732305977532,0.1873289,3276.7,3276.1,0.01]
[1732305979273,0.55,3276.6,3276.1,0.01]
[1732305980544,0.55,3276.6,3275.8,0.01]
[1732305980751,0.55,3276.6,3275.8,0.46186718]
[1732305980948,0.55,3276.6,3275.7,0.0019097]
[1732305982093,0.55,3276.6,3275.8,0.44217603]
[1732305982252,0.1873289,3276.7,3276.2,0.01]
[1732305982454,0.1873289,3276.7,3276.2,1.5573]
[1732305982749,0.1873289,3276.7,3276.4,0.01]
[1732305982950,0.655,3277.3,3276.4,0.01]
[1732305983145,1.217929,3277.2,3276.4,0.01]
[1732305984057,0.55,3277.1,3276.4,0.01]
[1732305984261,0.55,3276.9,3276.4,0.01]
[1732305984473,0.1767929,3277.0,3276.7,0.01]
[1732305984851,0.655,3277.3,3276.7,0.01]
[1732305985064,1.217825,3277.5,3276.7,0.01]
[1732305985477,0.655,3277.6,3276.8,1.5473]
[1732305985675,1.872765,3277.6,3276.8,1.5473]
[1732305985971,0.1872765,3277.5,3276.8,1.5473]
[1732305986558,0.55,3277.4,3276.8,1.5473]
[1732305987669,3.756,3277.4,3276.6,0.01]
[1732305987880,0.55,3277.2,3276.5,1.5567]
[1732305988655,0.55,3277.2,3276.5,1.5467]
[1732305988859,0.55,3277.2,3276.4,0.01]
[1732305989079,0.55,3277.2,3276.3,0.01]
[1732305989290,0.55,3277.2,3276.4,0.01]
[1732305989590,0.55,3277.2,3276.4,0.40342603]
[1732305989908,0.39432765,3277.3,3276.9,0.01]
[1732305990054,0.1872765,3277.5,3277.0,1.6282]
[1732305990405,0.655,3277.6,3277.0,1.6282]
[1732305990565,1.31,3277.6,3277.0,1.6282]
[1732305991448,0.55,3277.5,3277.0,1.6282]
[1732305992512,0.0245819,3277.8,3277.1,0.01]
[1732305992660,0.0245819,3277.8,3277.1,0.39342603]
[1732305992661,0.655,3277.7,3277.1,0.39342603]
[1732305993000,0.655,3277.7,3277.0,0.01]
[1732305993195,0.655,3277.7,3276.8,0.01]
[1732305993371,0.655,3277.7,3277.0,0.01]
[1732305993572,0.655,3277.7,3276.8,0.01]
[1732305993573,3.861,3277.7,3276.8,0.01]
[1732305993809,0.55,3277.5,3276.9,0.01]
[1732305993952,0.0245819,3277.8,3276.8,0.01]
[1732305993953,0.0245819,3277.8,3277.1,0.01]
[1732305994159,0.21430389,3277.8,3277.2,1.5678]
[1732305994359,0.0245819,3277.8,3277.2,1.5678]
[1732305994559,0.0245819,3277.8,3277.3,0.01]
[1732305994794,0.0245819,3277.8,3277.3,0.37842603]
[1732305994959,0.0245819,3277.8,3277.3,0.01]
[1732305996089,0.0245819,3277.8,3277.2,1.5778]
[1732305996293,0.0245819,3277.8,3277.1,0.01]
[1732305996727,0.0245819,3277.8,3277.2,0.01]